fUST/lending_fUST_20240713
["ID","MTS","AMOUNT","RATE_DAILY","PERIOD"]
[331875866,1720809042997,-525.64,0.00024657,2]
[331875867,1720809043007,-500.0,0.00024657,2]
[331875868,1720809043018,-500.0,0.00024657,2]
[331875869,1720809043028,-500.0,0.00024657,2]
[331875870,1720809043039,-500.0,0.00024657,2]
[331875871,1720809043050,-500.0,0.00024657,2]
[331875872,1720809043061,-500.0,0.00024657,2]
[331875873,1720809043071,-500.0,0.00024657,2]
[331875874,1720809043081,-500.0,0.00024657,2]
[331875875,1720809043093,-500.0,0.00024657,2]
[331875876,1720809043103,-500.0,0.00024657,2]
[331875877,1720809043113,-500.0,0.00024657,2]
[331875878,1720809043123,-500.0,0.00024657,2]
[331875879,1720809043132,-500.0,0.00024657,2]
[331875880,1720809043141,-500.0,0.00024657,2]
[331875881,1720809043150,-547.6465524,0.00024657,2]
[331875883,1720809043160,-745.69,0.00024657,2]
[331875885,1720809043170,-269.113512,0.00024657,7]
[331875887,1720809043179,-500.0,0.00024657,2]
[331875889,1720809043189,-500.0,0.00024657,2]
[331875890,1720809043199,-500.0,0.00024657,2]
[331875891,1720809043210,-500.0,0.00024657,2]
[331875892,1720809043221,-500.0,0.00024657,2]
[331875893,1720809043231,-500.0,0.00024657,2]
[331875894,1720809043241,-500.0,0.00024657,2]
[331875895,1720809043250,-500.0,0.00024657,2]
[331875896,1720809043259,-500.0,0.00024657,2]
[331875897,1720809043269,-500.0,0.00024657,2]
[331875898,1720809043278,-649.33706745,0.00024657,2]
[331875900,1720809043287,-500.0,0.00024657,2]
[331875903,1720809043297,-500.0,0.00024657,2]
[331875906,1720809043306,-500.0,0.00024657,2]
[331875909,1720809043315,-500.0,0.00024657,2]
[331875912,1720809043325,-1100.9,0.00024657,2]
[331875914,1720809043334,-500.0,0.00024657,2]
[331875915,1720809043343,-500.0,0.00024657,2]
[331875917,1720809043353,-500.0,0.00024657,2]
[331875919,1720809043362,-500.0,0.00024657,2]
[331875921,1720809043371,-500.0,0.00024657,2]
[331875922,1720809043380,-500.0,0.00024657,2]
[331875924,1720809043389,-500.0,0.00024657,2]
[331875926,1720809043398,-500.0,0.00024657,2]
[331875927,1720809043407,-500.0,0.00024657,2]
[331875929,1720809043417,-500.0,0.00024657,2]
[331875931,1720809043426,-516.09,0.00024657,2]
[331875932,1720809043435,-559.76,0.00024657,2]
[331875935,1720809043444,-722.68,0.00024657,2]
[331875936,1720809043454,-500.0,0.00024657,2]
[331875937,1720809043463,-500.0,0.00024657,2]
[331875938,1720809043472,-500.0,0.00024657,2]
[331875939,1720809043481,-500.0,0.00024657,2]
[331875940,1720809043490,-500.0,0.00024657,2]
[331875941,1720809043499,-524.09,0.00024657,2]
[331875942,1720809043508,-500.0,0.00024657,2]
[331875943,1720809043517,-500.0,0.00024657,2]
[331875945,1720809043526,-500.0,0.00024657,2]
[331875947,1720809043535,-546.95,0.00024657,2]
[331875949,1720809043545,-500.0,0.00024657,2]
[331875951,1720809043553,-500.0,0.00024657,2]
[331875953,1720809043563,-442.70657641,0.00024657,2]
[331875955,1720809043573,-500.0,0.00024657,2]
[331875957,1720809043582,-500.0,0.00024657,2]
[331875959,1720809043593,-535.95,0.00024657,2]
[331875961,1720809043603,-500.0,0.00024657,2]
[331875962,1720809043613,-500.0,0.00024657,2]
[331875964,1720809043621,-500.0,0.00024657,2]
[331875965,1720809043630,-500.0,0.00024657,2]
[331875966,1720809043639,-500.0,0.00024657,2]
[331875967,1720809043649,-500.0,0.00024657,2]
[331875969,1720809043658,-588.73,0.00024657,2]
[331875971,1720809043667,-500.0,0.00024657,2]
[331875973,1720809043675,-500.0,0.00024657,2]
[331875974,1720809043684,-500.0,0.00024657,2]
[331875975,1720809043694,-582.9,0.00024657,2]
[331875976,1720809043703,-1562.37,0.00024657,2]
[331875977,1720809043711,-500.0,0.00024657,2]
[331875978,1720809043721,-500.0,0.00024657,2]
[331875979,1720809043730,-500.0,0.00024657,2]
[331875980,1720809043739,-500.0,0.00024657,2]
[331875981,1720809043748,-500.0,0.00024657,2]
[331875982,1720809043757,-878.98,0.00024657,2]
[331875983,1720809043766,-500.0,0.00024657,2]
[331875984,1720809043775,-500.0,0.00024657,2]
[331875985,1720809043784,-500.0,0.00024657,2]
[331875986,1720809043794,-510.74594422,0.00024657,2]
[331875987,1720809043803,-500.0,0.00024657,2]
[331875988,1720809043812,-500.0,0.00024657,2]
[331875989,1720809043824,-500.0,0.00024657,2]
[331875990,1720809043834,-500.0,0.00024657,2]
[331875991,1720809043843,-500.0,0.00024657,2]
[331875992,1720809043853,-500.0,0.00024657,2]
[331875993,1720809043862,-500.0,0.00024657,2]
[331875994,1720809043873,-506.23,0.00024657,2]
[331875995,1720809043883,-454.78174862,0.00024657,2]
[331875996,1720809043892,-3440.92,0.00024657,2]
[331875997,1720809043901,-500.0,0.00024657,2]
[331875998,1720809043915,-500.0,0.00024657,2]
[331875999,1720809043924,-500.0,0.00024657,2]
[331876000,1720809043934,-500.0,0.00024657,2]
[331876001,1720809043943,-151.0,0.00024657,7]
[331876002,1720809043954,-151.0,0.00024657,7]
[331876003,1720809043963,-500.0,0.00024657,2]
[331876004,1720809043973,-500.0,0.00024657,2]
[331876005,1720809043982,-507.08852201,0.00024657,2]
[331876006,1720809043994,-500.0,0.00024657,2]
[331876007,1720809044003,-500.0,0.00024657,2]
[331876008,1720809044012,-502.12361741,0.00024657,2]
[331876009,1720809044021,-151.0,0.00024657,4]
[331876010,1720809044030,-151.0,0.00024657,4]
[331876011,1720809044040,-288.67583761,0.00024657,2]
[331876012,1720809044050,-500.0,0.00024657,2]
[331876013,1720809044059,-500.0,0.00024657,2]
[331876014,1720809044073,-500.0,0.00024657,2]
[331876015,1720809044084,-500.0,0.00024657,2]
[331876016,1720809044094,-500.0,0.00024657,2]
[331876017,1720809044102,-629.62,0.00024657,2]
[331876018,1720809044110,-770.47,0.00024657,2]
[331876019,1720809044119,-500.0,0.00024657,2]
[331876020,1720809044129,-500.0,0.00024657,2]
[331876021,1720809044138,-500.0,0.00024657,2]
[331876022,1720809044147,-500.0,0.00024657,2]
[331876023,1720809044156,-500.0,0.00024657,2]
[331876024,1720809044166,-621.11346786,0.00024657,2]
[331876025,1720809044175,-641.84,0.00024657,2]
[331876026,1720809044185,-500.0,0.00024657,2]
[331876027,1720809044195,-500.0,0.00024657,2]
[331876028,1720809044204,-291.40269271,0.00024657,2]
[331876029,1720809044214,-501.33,0.00024657,2]
[331876030,1720809044224,-591.37,0.00024657,2]
[331876031,1720809044234,-500.0,0.00024657,2]
[331876032,1720809044243,-500.0,0.00024657,2]
[331876033,1720809044253,-500.0,0.00024657,2]
[331876034,1720809044262,-533.16692908,0.00024657,2]
[331876035,1720809044271,-982.24,0.00024657,2]
[331876036,1720809044281,-566.91,0.00024657,2]
[331876037,1720809044290,-525.1,0.00024657,2]
[331876038,1720809044300,-500.0,0.00024657,2]
[331876039,1720809044309,-500.0,0.00024657,2]
[331876040,1720809044323,-500.0,0.00024657,2]
[331876041,1720809044332,-500.0,0.00024657,2]
[331876042,1720809044341,-569.01167298,0.00024657,2]
[331876043,1720809044351,-520.22345154,0.00024657,2]
[331876044,1720809044360,-500.0,0.00024657,2]
[331876045,1720809044369,-606.03,0.00024657,2]
[331876046,1720809044378,-500.0,0.00024657,2]
[331876047,1720809044387,-500.0,0.00024657,2]
[331876048,1720809044396,-500.0,0.00024657,2]
[331876049,1720809044405,-500.0,0.00024657,2]
[331876050,1720809044414,-895.32,0.00024657,2]
[331876051,1720809044423,-555.73,0.00024657,2]
[331876052,1720809044435,-691.02,0.00024657,2]
[331876053,1720809044444,-151.0,0.00024657,7]
[331876054,1720809044453,-151.0,0.00024657,7]
[331876055,1720809044462,-500.0,0.00024657,2]
[331876056,1720809044472,-151.0,0.00024657,7]
[331876057,1720809044482,-438.80742447,0.00024657,2]
[331876062,1720809045002,-285.0,0.00024481,7]
[331876064,1720809045012,-61.19257553,0.00024657,2]
[331876066,1720809045021,-500.0,0.00024657,2]
[331876067,1720809045030,-500.0,0.00024657,2]
[331876069,1720809045039,-943.77,0.00024657,2]
[331876071,1720809045048,-540.6,0.00024657,2]
[331876073,1720809045057,-500.0,0.00024657,2]
[331876075,1720809045067,-500.0,0.00024657,2]
[331876076,1720809045078,-500.0,0.00024657,2]
[331876077,1720809045087,-500.0,0.00024657,2]
[331876078,1720809045096,-500.0,0.00024657,2]
[331876079,1720809045105,-137.68250523,0.00024657,2]
[331876080,1720809045480,-362.31749477,0.00024657,2]
[331876081,1720809045491,-500.0,0.00024657,2]
[331876082,1720809045501,-500.0,0.00024657,2]
[331876083,1720809045512,-500.0,0.00024657,2]
[331876084,1720809045523,-856.66,0.00024657,2]
[331876085,1720809045534,-319.51984705,0.00024657,2]
[331876100,1720809046888,-180.48015295,0.00024657,2]
[331876102,1720809046897,-500.0,0.00024657,2]
[331876103,1720809046907,-151.0,0.00024657,7]
[331876104,1720809046916,-151.0,0.00024657,7]
[331876105,1720809046932,-151.0,0.00024657,7]
[331876106,1720809046941,-151.0,0.00024657,7]
[331876107,1720809046950,-151.0,0.00024657,7]
[331876108,1720809046960,-526.1,0.00024657,2]
[331876109,1720809046970,-151.0,0.00024657,7]
[331876110,1720809046980,-1532.97,0.00024657,2]
[331876111,1720809046989,-500.0,0.00024657,2]
[331876112,1720809047003,-500.0,0.00024657,2]
[331876113,1720809047013,-500.0,0.00024657,2]
[331876114,1720809047022,-500.0,0.00024657,2]
[331876115,1720809047031,-151.0,0.00024657,7]
[331876116,1720809047041,-22.14984705,0.00024657,7]
[331876365,1720809719948,187.84280407,0.00016255,2]
[331876395,1720809957108,492.90786688,0.00016255,2]
[331876406,1720810041130,-236.886488,0.00021096,2]
[331876413,1720810148145,-217.177569,0.00021096,2]
[331876548,1720810240103,-14100.4803406,0.00023357,2]
[331876550,1720810240113,-178.571429,0.00023798,2]
[331876552,1720810240124,-178.571429,0.00024004,2]
[331876554,1720810240134,-178.571429,0.00024211,2]
[331876556,1720810240144,-178.571429,0.00024418,2]
[331876558,1720810240157,-537.46637191,0.0002448,2]
[331876560,1720810240166,-886.16851084,0.00024481,2]
[331876562,1720810240176,-268.79112779,0.00024481,2]
[331876564,1720810240185,-2022.28202071,0.00024556,2]
[331876566,1720810240195,-178.571429,0.00024625,2]
[331876568,1720810240204,-24006.754827,0.00024647,3]
[331876570,1720810240214,-283.03763107,0.00024656,2]
[331876572,1720810240223,-626.66976042,0.00024656,2]
[331876575,1720810240233,-212.85689801,0.00024657,5]
[331876577,1720810240243,-500.0,0.00024657,2]
[331876579,1720810240253,-520.75123233,0.00024657,2]
[331876581,1720810240262,-10061.0,0.00024657,2]
[331876583,1720810240272,-519.61993245,0.00024657,2]
[331876585,1720810240282,-500.0,0.00024657,2]
[331876587,1720810240292,-500.0,0.00024657,2]
[331876589,1720810240305,-500.0,0.00024657,2]
[331876591,1720810240315,-240.66164192,0.00024657,2]
[331876593,1720810240324,-500.0,0.00024657,2]
[331876595,1720810240335,-500.0,0.00024657,2]
[331876597,1720810240344,-500.0,0.00024657,2]
[331876599,1720810240354,-500.0,0.00024657,2]
[331876601,1720810240364,-523.01,0.00024657,2]
[331876603,1720810240376,-500.0,0.00024657,2]
[331876605,1720810240386,-500.0,0.00024657,2]
[331876608,1720810240396,-500.0,0.00024657,2]
[331876610,1720810240405,-500.0,0.00024657,2]
[331876613,1720810240415,-500.0,0.00024657,2]
[331876617,1720810240425,-500.0,0.00024657,2]
[331876619,1720810240435,-500.0,0.00024657,2]
[331876622,1720810240445,-500.0,0.00024657,2]
[331876624,1720810240455,-500.0,0.00024657,2]
[331876626,1720810240465,-544.27768034,0.00024657,2]
[331876628,1720810240474,-500.0,0.00024657,2]
[331876630,1720810240484,-500.0,0.00024657,2]
[331876632,1720810240493,-500.0,0.00024657,2]
[331876634,1720810240503,-500.0,0.00024657,2]
[331876636,1720810240512,-500.0,0.00024657,2]
[331876638,1720810240522,-500.0,0.00024657,2]
[331876640,1720810240531,-500.0,0.00024657,2]
[331876642,1720810240541,-500.0,0.00024657,2]
[331876644,1720810240551,-1366.47,0.00024657,2]
[331876646,1720810240560,-500.0,0.00024657,2]
[331876648,1720810240570,-500.0,0.00024657,2]
[331876650,1720810240580,-500.0,0.00024657,2]
[331876652,1720810240590,-500.0,0.00024657,2]
[331876654,1720810240599,-1700.03,0.00024657,2]
[331876656,1720810240609,-523.06,0.00024657,2]
[331876659,1720810240620,-500.0,0.00024657,2]
[331876661,1720810240630,-500.0,0.00024657,2]
[331876663,1720810240640,-500.0,0.00024657,2]
[331876665,1720810240650,-500.0,0.00024657,2]
[331876667,1720810240659,-500.0,0.00024657,2]
[331876669,1720810240668,-500.0,0.00024657,2]
[331876670,1720810240678,-500.0,0.00024657,2]
[331876671,1720810240688,-500.0,0.00024657,2]
[331876672,1720810240697,-500.0,0.00024657,2]
[331876673,1720810240708,-500.0,0.00024657,2]
[331876674,1720810240718,-500.0,0.00024657,2]
[331876675,1720810240727,-500.0,0.00024657,2]
[331876676,1720810240737,-500.0,0.00024657,2]
[331876677,1720810240746,-500.0,0.00024657,2]
[331876678,1720810240755,-500.0,0.00024657,2]
[331876679,1720810240768,-500.0,0.00024657,2]
[331876680,1720810240777,-500.0,0.00024657,2]
[331876681,1720810240787,-500.0,0.00024657,2]
[331876682,1720810240797,-500.0,0.00024657,2]
[331876684,1720810240807,-500.0,0.00024657,2]
[331876686,1720810240817,-500.0,0.00024657,2]
[331876688,1720810240826,-500.0,0.00024657,2]
[331876690,1720810240835,-500.0,0.00024657,2]
[331876692,1720810240845,-500.0,0.00024657,2]
[331876694,1720810240855,-500.0,0.00024657,2]
[331876696,1720810240864,-512.04936283,0.00024657,2]
[331876698,1720810240874,-509.11,0.00024657,2]
[331876700,1720810240883,-500.0,0.00024657,2]
[331876702,1720810240893,-518.17,0.00024657,2]
[331876704,1720810240902,-500.0,0.00024657,2]
[331876706,1720810240912,-500.0,0.00024657,2]
[331876708,1720810240922,-500.0,0.00024657,2]
[331876710,1720810240931,-500.0,0.00024657,2]
[331876712,1720810240940,-500.0,0.00024657,2]
[331876714,1720810240949,-500.0,0.00024657,2]
[331876715,1720810240959,-540.61134251,0.00024657,2]
[331876717,1720810240969,-571.14,0.00024657,2]
[331876719,1720810240979,-500.0,0.00024657,2]
[331876721,1720810240988,-500.0,0.00024657,2]
[331876723,1720810240998,-564.2,0.00024657,2]
[331876725,1720810241007,-500.0,0.00024657,2]
[331876727,1720810241017,-500.0,0.00024657,2]
[331876729,1720810241027,-500.0,0.00024657,2]
[331876731,1720810241036,-500.0,0.00024657,2]
[331876733,1720810241046,-500.0,0.00024657,2]
[331876735,1720810241056,-538.31022416,0.00024657,2]
[331876738,1720810241067,-500.0,0.00024657,2]
[331876740,1720810241079,-500.0,0.00024657,2]
[331876742,1720810241090,-500.0,0.00024657,2]
[331876744,1720810241099,-500.0,0.00024657,2]
[331876746,1720810241109,-513.8143415,0.00024657,2]
[331876748,1720810241120,-500.0,0.00024657,2]
[331876750,1720810241130,-500.0,0.00024657,2]
[331876752,1720810241140,-502.42618053,0.00024657,2]
[331876754,1720810241149,-579.77281388,0.00024657,2]
[331876756,1720810241159,-500.0,0.00024657,2]
[331876758,1720810241169,-982.24,0.00024657,2]
[331876760,1720810241179,-550.3952643,0.00024657,2]
[331876762,1720810241189,-500.0,0.00024657,2]
[331876764,1720810241199,-500.0,0.00024657,2]
[331876765,1720810241209,-500.0,0.00024657,2]
[331876766,1720810241219,-500.0,0.00024657,2]
[331876767,1720810241230,-277.079883,0.00024657,7]
[331876768,1720810241240,-500.0,0.00024657,2]
[331876769,1720810241250,-500.0,0.00024657,2]
[331876770,1720810241260,-714.62,0.00024657,2]
[331876771,1720810241270,-500.0,0.00024657,2]
[331876772,1720810241280,-500.0,0.00024657,2]
[331876773,1720810241291,-500.0,0.00024657,2]
[331876774,1720810241304,-500.0,0.00024657,2]
[331876775,1720810241313,-500.0,0.00024657,2]
[331876776,1720810241322,-518.08,0.00024657,2]
[331876777,1720810241333,-500.0,0.00024657,2]
[331876778,1720810241343,-692.57,0.00024657,2]
[331876779,1720810241352,-500.0,0.00024657,2]
[331876780,1720810241362,-500.0,0.00024657,2]
[331876781,1720810241374,-500.0,0.00024657,2]
[331876782,1720810241384,-500.0,0.00024657,2]
[331876783,1720810241394,-500.0,0.00024657,2]
[331876784,1720810241404,-599.06,0.00024657,2]
[331876785,1720810241413,-151.0,0.00024657,7]
[331876786,1720810241423,-500.0,0.00024657,2]
[331876787,1720810241433,-567.96156618,0.00024657,2]
[331876788,1720810241443,-549.72445818,0.00024657,2]
[331876789,1720810241453,-500.0,0.00024657,2]
[331876790,1720810241464,-500.0,0.00024657,2]
[331876791,1720810241474,-244.58980199,0.00024657,2]
[331876792,1720810241485,-500.0,0.00024657,2]
[331876793,1720810241494,-500.0,0.00024657,2]
[331876794,1720810241504,-500.0,0.00024657,2]
[331876795,1720810241514,-500.0,0.00024657,2]
[331876796,1720810241525,-500.0,0.00024657,2]
[331876797,1720810241534,-500.0,0.00024657,2]
[331876798,1720810241543,-500.0,0.00024657,2]
[331876799,1720810241554,-500.0,0.00024657,2]
[331876800,1720810241563,-500.0,0.00024657,2]
[331876801,1720810241573,-500.0,0.00024657,2]
[331876802,1720810241583,-500.0,0.00024657,2]
[331876803,1720810241593,-513.62,0.00024657,2]
[331876804,1720810241602,-500.0,0.00024657,2]
[331876805,1720810241612,-151.0,0.00024657,7]
[331876806,1720810241623,-500.0,0.00024657,2]
[331876807,1720810241633,-500.0,0.00024657,2]
[331876808,1720810241642,-151.0,0.00024657,7]
[331876809,1720810241652,-500.0,0.00024657,2]
[331876810,1720810241662,-500.0,0.00024657,2]
[331876811,1720810241671,-500.0,0.00024657,2]
[331876812,1720810241681,-500.0,0.00024657,2]
[331876814,1720810241690,-500.0,0.00024657,2]
[331876816,1720810241699,-507.08852201,0.00024657,2]
[331876818,1720810241709,-500.0,0.00024657,2]
[331876820,1720810241721,-500.0,0.00024657,2]
[331876822,1720810241730,-500.0,0.00024657,2]
[331876824,1720810241741,-500.0,0.00024657,2]
[331876826,1720810241751,-500.0,0.00024657,2]
[331876828,1720810241761,-288.67583761,0.00024657,2]
[331876830,1720810241771,-659.2,0.00024657,2]
[331876832,1720810241780,-151.0,0.00024657,2]
[331876834,1720810241789,-500.0,0.00024657,2]
[331876836,1720810241801,-500.0,0.00024657,2]
[331876838,1720810241810,-500.0,0.00024657,2]
[331876840,1720810241820,-151.0,0.00024657,2]
[331876842,1720810241831,-500.0,0.00024657,2]
[331876844,1720810241841,-621.11346786,0.00024657,2]
[331876846,1720810241850,-500.0,0.00024657,2]
[331876848,1720810241861,-500.0,0.00024657,2]
[331876851,1720810241871,-502.12361741,0.00024657,2]
[331876853,1720810241881,-500.0,0.00024657,2]
[331876855,1720810241890,-160.485582,0.00024657,7]
[331876857,1720810241900,-902.46,0.00024657,2]
[331876859,1720810241910,-160.485582,0.00024657,7]
[331876861,1720810241919,-500.0,0.00024657,2]
[331876863,1720810241929,-500.0,0.00024657,2]
[331876865,1720810241940,-533.16692908,0.00024657,2]
[331876867,1720810241953,-500.0,0.00024657,2]
[331876869,1720810241964,-500.0,0.00024657,2]
[331876871,1720810241973,-500.0,0.00024657,2]
[331876873,1720810241983,-256.54,0.00024657,7]
[331876875,1720810241992,-160.429889,0.00024657,7]
[331876877,1720810242001,-500.0,0.00024657,2]
[331876879,1720810242012,-160.429889,0.00024657,7]
[331876881,1720810242022,-500.0,0.00024657,2]
[331876883,1720810242031,-555.73,0.00024657,2]
[331876885,1720810242040,-500.0,0.00024657,2]
[331876888,1720810242050,-500.0,0.00024657,2]
[331876890,1720810242060,-500.0,0.00024657,2]
[331876892,1720810242070,-500.0,0.00024657,2]
[331876894,1720810242079,-500.0,0.00024657,2]
[331876896,1720810242089,-500.0,0.00024657,2]
[331876898,1720810242099,-500.0,0.00024657,2]
[331876900,1720810242109,-500.0,0.00024657,2]
[331876902,1720810242120,-500.0,0.00024657,2]
[331876904,1720810242130,-500.0,0.00024657,2]
[331876906,1720810242139,-500.0,0.00024657,2]
[331876908,1720810242149,-500.0,0.00024657,2]
[331876910,1720810242159,-500.0,0.00024657,2]
[331876911,1720810242168,-500.0,0.00024657,2]
[331876912,1720810242178,-500.0,0.00024657,2]
[331876913,1720810242188,-500.0,0.00024657,2]
[331876914,1720810242197,-500.0,0.00024657,2]
[331876915,1720810242207,-500.0,0.00024657,2]
[331876916,1720810242216,-575.6,0.00024657,2]
[331876917,1720810242226,-500.0,0.00024657,2]
[331876918,1720810242236,-500.0,0.00024657,2]
[331876919,1720810242247,-500.0,0.00024657,2]
[331876920,1720810242257,-500.0,0.00024657,2]
[331876921,1720810242268,-500.0,0.00024657,2]
[331876922,1720810242279,-151.0,0.00024657,7]
[331876923,1720810242290,-500.0,0.00024657,2]
[331876924,1720810242302,-500.0,0.00024657,2]
[331876925,1720810242312,-500.0,0.00024657,2]
[331876926,1720810242321,-500.0,0.00024657,2]
[331876927,1720810242331,-500.0,0.00024657,2]
[331876929,1720810242342,-500.0,0.00024657,2]
[331876930,1720810242351,-795.08,0.00024657,2]
[331876931,1720810242361,-500.0,0.00024657,2]
[331876932,1720810242370,-500.0,0.00024657,2]
[331876933,1720810242384,-500.0,0.00024657,2]
[331876934,1720810242394,-500.0,0.00024657,2]
[331876935,1720810242405,-500.0,0.00024657,2]
[331876936,1720810242416,-500.0,0.00024657,2]
[331876937,1720810242427,-500.0,0.00024657,2]
[331876938,1720810242438,-521.55,0.00024657,2]
[331876939,1720810242448,-151.0,0.00024657,7]
[331876940,1720810242459,-500.0,0.00024657,2]
[331876941,1720810242470,-500.0,0.00024657,2]
[331876942,1720810242480,-500.05000945,0.00024657,2]
[331876943,1720810242490,-504.83184405,0.00024657,2]
[331876945,1720810242500,-707.59,0.00024657,2]
[331876947,1720810242509,-699.1,0.00024657,2]
[331876949,1720810242519,-500.0,0.00024657,2]
[331876951,1720810242530,-500.0,0.00024657,2]
[331876953,1720810242540,-500.0,0.00024657,2]
[331876955,1720810242550,-259.0368028,0.00024657,2]
[331876957,1720810242559,-500.0,0.00024657,2]
[331876959,1720810242570,-500.0,0.00024657,2]
[331876961,1720810242580,-500.0,0.00024657,2]
[331876964,1720810242590,-638.05591686,0.00024657,2]
[331876966,1720810242601,-565.99,0.00024657,2]
[331876968,1720810242610,-500.0,0.00024657,2]
[331876970,1720810242621,-500.0,0.00024657,2]
[331876973,1720810242631,-563.06,0.00024657,2]
[331876975,1720810242641,-500.0,0.00024657,2]
[331876977,1720810242651,-510.88,0.00024657,2]
[331876979,1720810242660,-590.17,0.00024657,2]
[331876981,1720810242671,-500.0,0.00024657,2]
[331876983,1720810242680,-500.0,0.00024657,2]
[331876985,1720810242690,-500.0,0.00024657,2]
[331876987,1720810242699,-282.84009363,0.00024657,2]
[331877009,1720810242938,-217.15990637,0.00024657,2]
[331877011,1720810242948,-500.0,0.00024657,2]
[331877013,1720810242957,-526.95595829,0.00024657,2]
[331877015,1720810242967,-500.0,0.00024657,2]
[331877017,1720810242976,-259.9410703,0.00024657,2]
[331877293,1720810246347,-174.273238,0.00023091,2]
[331877294,1720810246358,-240.0589297,0.00024657,2]
[331877295,1720810246368,-500.0,0.00024657,2]
[331877296,1720810246382,-113.54290489,0.00024657,2]
[331877297,1720810246548,-386.45709511,0.00024657,2]
[331877298,1720810246559,-500.0,0.00024657,2]
[331877299,1720810246571,-500.0,0.00024657,2]
[331877300,1720810246581,-500.0,0.00024657,2]
[331877301,1720810246591,-500.0,0.00024657,2]
[331877302,1720810246601,-500.0,0.00024657,2]
[331877303,1720810246611,-130.02443698,0.00024657,2]
[331877304,1720810246624,-369.97556302,0.00024657,2]
[331877305,1720810246634,-500.0,0.00024657,2]
[331877306,1720810246644,-521.8049587,0.00024657,2]
[331877307,1720810246654,-500.0,0.00024657,2]
[331877308,1720810246664,-500.0,0.00024657,2]
[331877309,1720810246674,-263.28072042,0.00024657,2]
[331877331,1720810910224,201.00821583,0.00016255,2]
[331877333,1720810947859,156.13706478,0.00016255,2]
[331877334,1720810953154,177.75835486,0.00016255,2]
[331877344,1720811058367,155.48315003,0.00016255,2]
[331877351,1720811352164,-191.24213208,0.00018798,2]
[331877352,1720811352185,-3179.71163492,0.00018899,2]
[331877353,1720811352205,-285.0,0.00021095,2]
[331877354,1720811352226,-195.531537,0.00021096,2]
[331877355,1720811352246,-431.360854,0.00021096,2]
[331877356,1720811412436,195.531537,0.00021096,2]
[331877357,1720811412623,67.911367,0.0002243,2]
[331877383,1720811432146,-531.23023325,0.0002243,2]
[331877385,1720811432157,-156.3,0.00023455,2]
[331877387,1720811432170,-155.14654511,0.00023455,2]
[331877388,1720811432179,-178.571429,0.00023645,2]
[331877389,1720811432189,-240.20078219,0.00023966,2]
[331877390,1720811432200,-155.38792849,0.00023966,2]
[331877391,1720811432210,-151.50895514,0.00024361,2]
[331877392,1720811432221,-153.0,0.00024492,2]
[331877393,1720811432231,-153.0,0.00024492,2]
[331877394,1720811432239,-153.0,0.00024492,2]
[331877396,1720811432249,-153.0,0.00024492,2]
[331877398,1720811432258,-232.9910749,0.00024492,2]